Cogmind - Beta 13 *** ADVENTURER MODE // 2024.04.28 @ 10:44:35 Player: ash Result: Destroyed by G-73 Enforcer with Phase Gun Performance ------------- Evolutions (8) 4000 Regions Visited (19) 3800 Robots Destroyed (106) 530 Value Destroyed (3500) 3500 Prototype IDs (30) 600 Alien Tech Used (0) 0 Bonus (1316) 1316 TOTAL SCORE: 13746 Bonus ------- High Alert Combat Kills 60 Follower Combat Kills 258 Met Warlord at Base 500 MAIN.C Attacked Warlord 500 Friendly Fire -2 Cogmind --------- Core Integrity 0/1450 Matter 280/300 Energy 100/100 System Corruption 0% Temperature Cool (0) Movement Core (50) Location -2/Research Parts ------- > --- POWER (2) -------- (None) > --- PROPULSION (6) --- (None) > --- UTILITY (13) ----- Advanced Visual Processing Unit Advanced Signal Interpreter > --- WEAPON (2) ------- Kinetic Spear > --- INVENTORY (5) ---- Quantum Reactor Light Quantum Reactor Advanced Force Booster Linear Accelerator Peak State ------------ > --- POWER ------------ Light Antimatter Reactor Light Particle Reactor > --- PROPULSION ------- Armored Huge Wheel Improved Antigrav System Improved Linear Gravjet Antigrav Array > --- UTILITY ---------- Advanced Heat Sink Advanced Cooling System Advanced Cooling System Advanced Cooling System Medium Storage Unit Advanced Visual Processing Unit Advanced Sensor Array Advanced Signal Interpreter Advanced Force Field Hacking Suite System Shield > --- WEAPON ----------- Advanced Remote Datajack Force Lance > --- INVENTORY -------- Light Antimatter Reactor Compact Wheel Xenon Bombardment Thruster Xenon Bombardment Thruster Quantum Rifle Heavy Disruptor Cannon Linear Accelerator [Rating: 123] Favorites ----------- Power Ion Engine Engine Ion Engine Power Core Light Fission Core Reactor Light Particle Reactor Propulsion Light Treads Treads Light Treads Leg Aluminum Leg Wheel Armored Huge Wheel Hover Unit Improved Linear Gravjet Flight Unit Improved VTOL Module Utility Medium Storage Unit Device Advanced Cooling System Storage Medium Storage Unit Processor Machine Analyzer Hackware Hacking Suite Protection Heavy Armor Plating Weapon High-powered Shotgun Energy Gun Medium Laser Energy Cannon Heavy Disruptor Cannon Ballistic Gun High-powered Shotgun Ballistic Cannon Linear Accelerator Launcher Rocket Launcher Special Weapon Advanced Remote Datajack Slashing Weapon Power Sword Piercing Weapon Force Lance Special Melee Weapon Dirty Datajack Build | -11 -10 -10 -9 -8 -7 -6 -5 -5 -5 -5 -4 -4 -4 -4 -4 -4 -3 -3 -2 ------- Run | Yrd Mat Min Mat Mat Fac Fac Fac Upp Upp War Pro Fac Ext Cet Arc Hub Res Tes Res Slots Evolved 16 | . . . 2 2 2 2 2 . . . . 2 . . . . 2 . 2 Power 1 | . . . . . . . 1 . . . . . . . . . . . . Propulsion 4 | . . . 2 . . 1 . . . . . 1 . . . . . . . Utility 11 | . . . . 2 2 1 1 . . . . 1 . . . . 2 . 2 Weapon . | . . . . . . . . . . . . . . . . . . . . Parts Attached 185 | . 5 8 13 6 21 10 11 5 3 1 1 15 17 . 1 12 28 11 17 Power 21 | . . 2 1 . 2 2 4 . . . . 1 2 . . 1 2 1 3 Engine 5 | . . 2 1 . 1 . 1 . . . . . . . . . . . . Core 9 | . . . . . 1 2 3 . . . . 1 1 . . 1 . . . Reactor 7 | . . . . . . . . . . . . . 1 . . . 2 1 3 Propulsion 39 | . 2 1 3 2 6 3 . 1 . . . 4 1 . . 1 5 4 6 Treads 8 | . 2 1 3 2 . . . . . . . . . . . . . . . Leg 1 | . . . . . . . . . . . . . . . . . . 1 . Wheel 2 | . . . . . . . . . . . . . . . . 1 1 . . Hover 5 | . . . . . . . . . . . . . . . . . 3 2 . Flight 23 | . . . . . 6 3 . 1 . . . 4 1 . . . 1 1 6 Utility 68 | . 3 . 3 4 6 4 7 2 1 . . 7 5 . . 8 10 3 5 Device 40 | . . . . . 2 1 7 2 1 . . 7 4 . . 3 7 3 3 Storage 4 | . 1 . 1 . 1 . . . . . . . . . . . 1 . . Processor 9 | . . . . 1 3 1 . . . . . . . . . 2 1 . 1 Hackware 5 | . . . . . . 1 . . . . . . 1 . . 2 . . 1 Protection 10 | . 2 . 2 3 . 1 . . . . . . . . . 1 1 . . Artifact . | . . . . . . . . . . . . . . . . . . . . Weapon 57 | . . 5 6 . 7 1 . 2 2 1 1 3 9 . 1 2 11 3 3 Energy Gun 7 | . . 2 1 . 1 . . . . . . . . . . 1 2 . . Energy Cannon 2 | . . . 1 . . . . . . . . . . . . . 1 . . Ballistic Gun 4 | . . . 4 . . . . . . . . . . . . . . . . Ballistic Cannon 1 | . . . . . . . . . . . . . . . . . 1 . . Launcher 11 | . . 3 . . 2 . . . 1 . 1 . 2 . . . 1 1 . Special Weapon 3 | . . . . . . . . 1 . 1 . . . . . . 1 . . Impact Weapon . | . . . . . . . . . . . . . . . . . . . . Slashing Weapon 11 | . . . . . . 1 . 1 1 . . 3 4 . 1 . . . . Piercing Weapon 15 | . . . . . 4 . . . . . . . . . . 1 5 2 3 Special Melee Weapon 3 | . . . . . . . . . . . . . 3 . . . . . . Unidentified Prototypes 8 | . . . . . . . . 2 . 1 . . . . . . 1 4 . Parts Lost 60 | . 1 4 2 1 . . . . 1 . . . 10 2 1 5 . 15 18 Power 10 | . . 1 1 . . . . . . . . . 2 . . 1 . 2 3 Propulsion 20 | . . 1 1 . . . . . . . . . 3 1 1 . . 4 9 Utility 23 | . 1 . . 1 . . . . 1 . . . 4 . . 3 . 7 6 Weapon 7 | . . 2 . . . . . . . . . . 1 1 . 1 . 2 . Highest Loss Streak 11 | . 1 3 1 1 . . . . 1 . . . 5 2 1 5 . 11 10 To Critical Strikes 1 | . . . . . . . . . . . . . . 1 . . . . . Average Slot Usage (%) 82 | . 94 78 99 90 90 93 93 92 93 97 94 88 78 55 34 41 73 62 36 Engine 5 | . 14 7 10 9 5 2 4 5 5 5 5 . . . . . . . . Core 1 | . . . . . 1 3 5 5 5 5 5 9 5 3 . 4 . . . Reactor 1 | . . . . . . . . . . . . . 1 . . . 5 5 2 Treads 13 | . 26 27 43 36 1 . . . . . . . . . . . . . . Hover 1 | . . . . . . . . . . . . . . . . . 7 10 4 Flight 9 | . . . . . 28 33 29 29 29 29 29 29 18 8 3 . . . 5 Device 9 | . . . . . 13 13 17 16 16 17 17 19 18 21 14 10 21 16 8 Storage 7 | . 14 14 11 9 7 6 5 5 5 5 5 5 4 . . . 2 3 . Processor 9 | . . . . 9 21 20 17 17 17 17 17 15 15 15 10 3 11 9 11 Hackware 2 | . . . . . . 5 5 5 5 5 5 5 5 5 3 6 9 4 . Protection 3 | . 8 . 10 9 . . . . . . . . . . . 4 . 2 . Energy Gun 2 | . . 13 6 . . . . . . 2 . . . . . 3 . . . Ballistic Gun 6 | . 28 1 13 18 . . . . . . . . . . . . . . . Launcher 1 | . . 11 1 . . . . . 3 . 2 1 1 1 . . . . . Piercing Weapon 1 | . . . . . 5 5 . . . . . . . . . 2 2 3 2 Naked Turns 29 | . . . . . . . . . . . . . . . 14 15 . . . Heaviest Build 70 | 14 22 21 58 66 63 22 24 26 27 26 27 33 39 26 12 38 70 51 29 Greatest Support 80 | 20 40 40 80 80 80 27 26 27 27 27 27 39 39 26 13 28 57 57 39 Greatest Overweight (x) 3 | . . . . . . . . . . . . . . . . 1 2 3 1 Average Overweight (x) . | . . . . . . . . . . . . . . . . . . . . Largest Inventory Capacity 20 | . 10 10 20 20 20 10 10 10 10 10 10 10 10 5 5 5 10 10 5 Average Capacity 11 | . 9 10 19 20 10 10 10 10 10 10 10 10 9 5 5 5 7 8 5 Most Carried 20 | . 10 10 19 20 20 10 10 10 9 10 10 10 10 5 5 4 10 10 5 Average Carried 9 | . 9 9 12 19 9 9 9 9 8 9 10 8 8 4 4 1 4 8 3 Final Capacity 20 | 8 10 10 20 20 10 10 10 10 10 10 10 10 5 5 5 5 10 5 5 Final Carried 19 | 6 10 9 19 18 9 10 10 9 8 10 10 9 5 5 4 1 10 5 4 Class Distribution -------------------- 36% | Mutant 10% | Scavenger-Mutant 9% | Hacker-Scout 9% | Hacker-Mutant 7% | Scavenger-Scout 5% | Hacker-Sprinter 5% | Scout 4% | Hacker-Ninja 4% | Scavenger-Assassin 3% | Hacker-Skirmisher Dominant Class ---------------- Mutant | -10/Materials Mutant | -10/Mines Mutant | -9/Materials Scavenger-Mutant | -8/Materials Scout | -7/Factory Hacker-Scout | -6/Factory Hacker-Ninja | -5/Factory Hacker-Scout | -5/Upper Caves Hacker-Sprinter | -5/Upper Caves Hacker-Mutant | -5/Warlord Hacker-Sprinter | -4/Proximity Caves Hacker-Ninja | -4/Factory Hacker-Scout | -4/Extension Hacker-Mutant | -4/Cetus Mutant | -4/Archives Hacker-Mutant | -4/Hub_04(d) Scavenger-Assassin | -3/Research Scavenger-Scout | -3/Testing Mutant | -2/Research Resources | -11 -10 -10 -9 -8 -7 -6 -5 -5 -5 -5 -4 -4 -4 -4 -4 -4 -3 -3 -2 ----------- Run | Yrd Mat Min Mat Mat Fac Fac Fac Upp Upp War Pro Fac Ext Cet Arc Hub Res Tes Res Matter Collected 3086 | 200 225 . 320 571 180 34 199 . 118 66 . 90 205 . . 39 440 45 354 Remotely . | . . . . . . . . . . . . . . . . . . . . Salvage Created 3605 | . 418 67 520 798 92 34 40 . 95 . . 46 189 . . 39 691 475 101 Parts 197 | . 18 4 28 39 8 4 2 . 8 . . 3 14 . . 5 35 24 5 Haulers Intercepted 10 | . 1 . 2 3 2 . . . . . . . . . . . 2 . . Recyclers Shooed 3 | . 1 . . . . . . . . . . . . . . . . 2 . Parts Field Recycled . | . . . . . . . . . . . . . . . . . . . . Retrieved Matter . | . . . . . . . . . . . . . . . . . . . . Parts Self-Destructed 6 | . . . . . . . . . 6 . . . . . . . . . . Prevented . | . . . . . . . . . . . . . . . . . . . . Kills | -11 -10 -10 -9 -8 -7 -6 -5 -5 -5 -5 -4 -4 -4 -4 -4 -4 -3 -3 -2 ------- Run | Yrd Mat Min Mat Mat Fac Fac Fac Upp Upp War Pro Fac Ext Cet Arc Hub Res Tes Res Combat Hostiles Destroyed 83 | . 7 12 11 19 . . . . 9 . . . 8 . . . 5 10 2 Melee 10 | . . . 1 . . . . . . . . . . . . . 3 4 2 Guns 37 | . 7 2 9 19 . . . . . . . . . . . . . . . Cannons 2 | . . . . . . . . . . . . . . . . . 2 . . AOE 33 | . . 10 . . . . . . 9 . . . 8 . . . . 6 . Classes Destroyed 14 | . 3 3 2 2 . . . . . . . . . . . . 3 1 . Worker 6 | . . . . 2 . . . . . . . . . . . . 2 2 . Builder 3 | . . . . . . . . . . . . . . . . . 1 2 . Tunneler 1 | . . . . . . . . . . . . . . . . . 1 . . Hauler 10 | . 1 . 2 3 2 . . . . . . . . . . . 2 . . Recycler 4 | . 1 . 1 . . . . . . . . . . . . . 1 1 . Watcher 7 | . . . 1 . . 1 1 . . . . 1 . . . 1 1 . 1 Swarmer 30 | . . 3 . 2 . . . . 9 . . . 7 . . . 3 4 2 Grunt 30 | . 7 . 9 10 . . . . . . . . . . . . . 4 . Sentry 9 | . . . 2 6 . . . . . . . . 1 . . . . . . Demolisher 1 | . . 1 . . . . . . . . . . . . . . . . . Specialist 1 | . . . . . . . . . . . . . . . . . . 1 . Hunter 2 | . . . . 1 . . . . . . . . . . . . . 1 . Programmer 2 | . . . . . . . . . . . . . . . . . 2 . . Assembled 8 | . . 8 . . . . . . . . . . . . . . . . . Best Kill Streak 15 | . 2 9 4 5 1 1 1 . 5 . . 1 4 . . 1 4 15 1 Combat Bots Only 9 | . 2 9 3 4 . . . . 5 . . . 4 . . . 3 9 1 Max Kills in Single Turn 6 | . 1 5 1 2 1 1 1 . 3 . . 1 3 . . 1 1 6 1 Gunslinging . | . . . . . . . . . . . . . . . . . . . . Exploded 5 | . . 5 . . . . . . 3 . . . 3 . . . . 4 . Melee 1 | . . . 1 . . . . . . . . . . . . . 1 1 1 Uniques/NPCs Destroyed . | . . . . . . . . . . . . . . . . . . . . Combat | -11 -10 -10 -9 -8 -7 -6 -5 -5 -5 -5 -4 -4 -4 -4 -4 -4 -3 -3 -2 -------- Run | Yrd Mat Min Mat Mat Fac Fac Fac Upp Upp War Pro Fac Ext Cet Arc Hub Res Tes Res Hostile Shots Fired 928 | . 42 36 38 90 . 9 1 . 17 4 . 16 92 18 30 74 57 142 262 Missed 336 | . 7 7 7 18 . 5 1 . 8 . . 9 46 7 13 24 19 62 103 Damage Taken 9337 | . 379 521 291 837 31 30 19 . 142 100 . 124 798 242 355 612 576 1594 2686 Core 2987 | . 69 77 49 66 18 13 19 . 22 47 . 49 128 44 312 80 143 397 1454 Absorbed by Shields 159 | . . . . . . . . . . . . . 42 . . . 117 . . Redirected to Shielding 101 | . . . . . . . . . . . . . . . . . . 101 . Ignored by Resistances 2662 | . 112 147 88 241 9 9 5 . 40 28 . 36 234 64 97 174 194 446 738 Regen/Repaired (Parts) 12 | . . . . . . . . . . 12 . . . . . . . . . Core Remaining (%) 78 | 100 . 41 87 88 97 98 . . . . 91 . . . . 46 . 58 . Volleys Fired 157 | . 32 7 32 60 . . . 3 7 . . . 4 . . . 8 4 . Largest 2 | . 2 2 2 2 . . . 1 1 . . . 1 . . . 2 1 . Hottest 160 | . 40 90 115 50 . . . . 33 . . . 33 . . . 160 20 . Shots Fired 287 | . 64 10 63 120 . . . 3 7 . . . 4 . . . 12 4 . Gun 257 | . 64 6 63 120 . . . . . . . . . . . . 4 . . Cannon 5 | . . . . . . . . . . . . . . . . . 5 . . Launcher 19 | . . 4 . . . . . . 7 . . . 4 . . . . 4 . Special 6 | . . . . . . . . 3 . . . . . . . . 3 . . Kinetic 224 | . 64 . 36 120 . . . . . . . . . . . . 4 . . Thermal 37 | . . 6 27 . . . . . . . . . . . . . 4 . . Explosive 19 | . . 4 . . . . . . 7 . . . 4 . . . . 4 . Electromagnetic 1 | . . . . . . . . . . . . . . . . . 1 . . Robot Hit Streak 29 | . 29 6 20 21 . . . . 4 . . . . . . . 16 18 . Robot Miss Streak 3 | . 1 1 3 3 . . . . 1 . . . . . . . . . . Penetration Max . | . . . . . . . . . . . . . . . . . . . . Secondary Targets 4 | . 1 1 . 2 . . . . . . . . . . . . . . . Max Gunslinging Chain 1 | . 1 1 . 1 . . . . . . . . . . . . . . . Shots Hit Robots 303 | . 58 6 50 104 7 1 1 . 4 . . 1 14 . . 1 28 18 10 Core Hits 202 | . 19 23 22 56 2 1 1 . 15 . . 1 14 . . 1 14 30 3 Critical Kills 1 | . 1 . . . . . . . . . . . . . . . . . . Critical Parts Destroyed . | . . . . . . . . . . . . . . . . . . . . Critical Strikes 6 | . 1 1 . . 2 . . . . . . . . . . . . 2 . Burn 1 | . . 1 . . . . . . . . . . . . . . . . . Destroy 1 | . 1 . . . . . . . . . . . . . . . . . . Impale 4 | . . . . . 2 . . . . . . . . . . . . 2 . Melee Attacks 117 | . . . . . 16 8 8 2 . . . 3 14 . 1 2 17 18 28 Impact . | . . . . . . . . . . . . . . . . . . . . Slashing 22 | . . . . . . 2 8 2 . . . 3 6 . 1 . . . . Piercing 95 | . . . . . 16 6 . . . . . . 8 . . 2 17 18 28 Sneak Attacks 18 | . . . . . 2 . . . . . . 1 4 . . . 9 1 1 Combat Hostiles 3 | . . . . . . . . . . . . . 3 . . . . . . Follow-up Attacks 2 | . . . . . . . . . . . . . . . . . . 2 . Damage Inflicted 11018 | . 738 593 831 2463 272 59 52 . 596 . . 79 751 . . 55 1406 2599 524 Guns 4212 | . 736 68 808 2460 . . . . . . . . . . . . 140 . . Cannons 197 | . . . . . . . . . . . . . . . . . 197 . . Explosions 3309 | . . 525 . . . . . . 596 . . . 406 . . . . 1782 . Melee 3271 | . . . . . 272 59 52 . . . . 79 345 . . 55 1068 817 524 Ramming 29 | . 2 . 23 3 . . . . . . . . . . . . 1 . . Kinetic 3886 | . 736 . 500 2460 . . . . . . . . . . . . 190 . . Thermal 516 | . . 68 308 . . . . . . . . . . . . . 140 . . Explosive 3309 | . . 525 . . . . . . 596 . . . 406 . . . . 1782 . Electromagnetic 7 | . . . . . . . . . . . . . . . . . 7 . . Impact . | . . . . . . . . . . . . . . . . . . . . Slashing 455 | . . . . . . . 52 . . . . 79 324 . . . . . . Piercing 2816 | . . . . . 272 59 . . . . . . 21 . . 55 1068 817 524 Highest Corruption 7 | . . . . . . . . . . 1 1 . . . . . 1 7 . Average Corruption 1 | . . . . . . . . . . 1 1 . . . . . 1 3 . Corruption Purged . | . . . . . . . . . . . . . . . . . . . . Corruption Blocked . | . . . . . . . . . . . . . . . . . . . . Effects 13 | . . . . . . . . . . 1 . . . . . . 4 8 . Message Errors 4 | . . . . . . . . . . . . . . . . . 2 2 . Matter Fused 1 | . . . . . . . . . . . . . . . . . . 1 . Heat Flow Errors 5 | . . . . . . . . . . . . . . . . . 2 3 . Energy Discharges 1 | . . . . . . . . . . 1 . . . . . . . . . Parts Rejected 1 | . . . . . . . . . . . . . . . . . . 1 . Data Loss (minor) 1 | . . . . . . . . . . . . . . . . . . 1 . Overload Shots . | . . . . . . . . . . . . . . . . . . . . Overflow Damage 383 | . . 15 . . 17 . . . 3 . . . 10 . . . 117 184 37 Projectiles . | . . . . . . . . . . . . . . . . . . . . Explosions 77 | . . 15 . . . . . . 3 . . . 3 . . . . 56 . Melee 306 | . . . . . 17 . . . . . . . 7 . . . 117 128 37 Knockbacks 1 | . . . . . . . . . . . . . . . . . 1 . . Impact . | . . . . . . . . . . . . . . . . . . . . Kinetic 1 | . . . . . . . . . . . . . . . . . 1 . . Secondary . | . . . . . . . . . . . . . . . . . . . . Self-Inflicted Damage 254 | . . 24 . . . . . . 26 . . . 17 . . . . 187 . Shots 7 | . . 1 . . . . . . 1 . . . 1 . . . . 4 . Rammed 7 | . 1 1 3 1 . . . . . . . . . . . . 1 . . Targets Rammed 9 | . 1 1 5 1 . . . . . . . . . . . . 1 . . Kicked . | . . . . . . . . . . . . . . . . . . . . Crushed 2 | . . . 2 . . . . . . . . . . . . . . . . Highest Temperature 330 | . 63 90 330 45 . 13 . . . . . 182 11 . . . 154 149 13 Average Temperature 59 | . 24 43 136 13 . 9 . . . . . 54 7 . . . 102 63 13 Received Heat Transfer 2019 | . 357 40 177 540 . 18 . . . 9 . 18 127 36 54 103 12 213 315 Effects 4 | . . . 4 . . . . . . . . . . . . . . . . Energy Bleed 1 | . . . 1 . . . . . . . . . . . . . . . . Interference 3 | . . . 3 . . . . . . . . . . . . . . . . Siege Activations . | . . . . . . . . . . . . . . . . . . . . Robots Corrupted . | . . . . . . . . . . . . . . . . . . . . Combat Hostiles . | . . . . . . . . . . . . . . . . . . . . Parts Fried . | . . . . . . . . . . . . . . . . . . . . Impact Corruptions . | . . . . . . . . . . . . . . . . . . . . Robots Melted 1 | . . . 1 . . . . . . . . . . . . . . . . Combat Hostiles 1 | . . . 1 . . . . . . . . . . . . . . . . Parts Melted 5 | . . . 5 . . . . . . . . . . . . . . . . Heat Transferred 1259 | . . 260 851 . . . . . . . . . . . . . 148 . . Parts Sabotaged . | . . . . . . . . . . . . . . . . . . . . Parts Stolen . | . . . . . . . . . . . . . . . . . . . . Parts Stripped . | . . . . . . . . . . . . . . . . . . . . Power Chain Reactions . | . . . . . . . . . . . . . . . . . . . . Alert | -11 -10 -10 -9 -8 -7 -6 -5 -5 -5 -5 -4 -4 -4 -4 -4 -4 -3 -3 -2 ------- Run | Yrd Mat Min Mat Mat Fac Fac Fac Upp Upp War Pro Fac Ext Cet Arc Hub Res Tes Res Peak Influence 618 | . 127 87 211 402 325 288 262 . . . . 142 354 95 80 82 164 567 618 Initial 277 | . . . . 75 134 70 121 . . . . . 59 80 28 23 18 41 277 Average 139 | . 38 36 115 227 204 194 181 . . . . 70 199 87 54 46 68 242 431 Maximum Alert Level 2 | . . . 1 2 1 1 1 . . . . . 1 . . . . 2 2 Low Security (%) 71 | . 100 100 79 32 48 45 64 . . . . 100 37 100 100 100 100 59 . Level 1 22 | . . . 20 66 51 54 35 . . . . . 62 . . . . 4 36 Level 2 5 | . . . . . . . . . . . . . . . . . . 36 63 Level 3 . | . . . . . . . . . . . . . . . . . . . . Level 4 . | . . . . . . . . . . . . . . . . . . . . Level 5 . | . . . . . . . . . . . . . . . . . . . . High Security . | . . . . . . . . . . . . . . . . . . . . Max Security . | . . . . . . . . . . . . . . . . . . . . Squads Dispatched 22 | . 1 . 1 3 2 2 1 . . . . . 3 . . 1 2 3 3 Investigation 13 | . 1 . 1 1 1 2 1 . . . . . 2 . . . . 3 1 Extermination 1 | . . . . . . . . . . . . . . . . . 1 . . Reinforcement 7 | . . . . 1 1 . . . . . . . 1 . . 1 1 . 2 Assault . | . . . . . . . . . . . . . . . . . . . . Garrison 1 | . . . . 1 . . . . . . . . . . . . . . . Intercept . | . . . . . . . . . . . . . . . . . . . . Searches Triggered . | . . . . . . . . . . . . . . . . . . . . Construction Impeded . | . . . . . . . . . . . . . . . . . . . . Haulers Reinforced 1 | . . . . . 1 . . . . . . . . . . . . . . Active Scanning Responses . | . . . . . . . . . . . . . . . . . . . . Cargo Convoy Interrupts . | . . . . . . . . . . . . . . . . . . . . Stealth | -11 -10 -10 -9 -8 -7 -6 -5 -5 -5 -5 -4 -4 -4 -4 -4 -4 -3 -3 -2 --------- Run | Yrd Mat Min Mat Mat Fac Fac Fac Upp Upp War Pro Fac Ext Cet Arc Hub Res Tes Res Distress Signals 25 | . 2 . 1 4 1 . . . . 1 . . 4 1 . . . 1 10 Communications Jammed 16 | . . . . . . . 2 . . . . . . 12 . . . . 2 Distress Signals 14 | . . . . . . . 2 . . . . . . 12 . . . . . Times Spotted 262 | . 16 24 17 29 6 6 6 . 8 12 . 7 36 5 4 8 15 22 41 Peak Tracking Total 21 | . 3 21 4 6 4 3 4 . 5 8 . 4 10 5 4 6 6 9 16 Tactical Retreats 34 | . . . 1 2 1 3 2 . 1 1 . 2 5 . . . 3 4 9 Traps | -11 -10 -10 -9 -8 -7 -6 -5 -5 -5 -5 -4 -4 -4 -4 -4 -4 -3 -3 -2 ------- Run | Yrd Mat Min Mat Mat Fac Fac Fac Upp Upp War Pro Fac Ext Cet Arc Hub Res Tes Res Traps Triggered 14 | . 3 . 1 1 3 1 1 . . . . 1 1 . . . . 2 . Indirectly . | . . . . . . . . . . . . . . . . . . . . Trap Hack Attempts . | . . . . . . . . . . . . . . . . . . . . Triggered . | . . . . . . . . . . . . . . . . . . . . Disarmed . | . . . . . . . . . . . . . . . . . . . . Reprogrammed 10 | . . . . . . . . . . . . . 4 . . . 6 . . Reused 3 | . . . . . . . . . . . . . . . . . 3 . . Traps Extracted 4 | . . . . . . . . . . . . . 4 . . . . . . Installed 6 | . . 4 . . . . . . . . . . 2 . . . . . . Triggered 9 | . . . . . . . . . . 6 . . . . . . 3 . . Most Traps Carried 2 | . . . . . . . . . . . . . 2 . . . . . . Machines | -11 -10 -10 -9 -8 -7 -6 -5 -5 -5 -5 -4 -4 -4 -4 -4 -4 -3 -3 -2 ---------- Run | Yrd Mat Min Mat Mat Fac Fac Fac Upp Upp War Pro Fac Ext Cet Arc Hub Res Tes Res Machines Disabled 11 | . . . . . . . . 1 . . . . . . . . . 10 . Max in Single Turn 4 | . . . . . . . . 1 . . . . . . . . . 4 . Garrison Access 6 | . . . . . 1 1 1 . . . . . . . . . 1 . 2 Machines Repaired . | . . . . . . . . . . . . . . . . . . . . Machines Dismantled . | . . . . . . . . . . . . . . . . . . . . Machines Sabotaged . | . . . . . . . . . . . . . . . . . . . . Overloaded Fab Kills . | . . . . . . . . . . . . . . . . . . . . Hacking | -11 -10 -10 -9 -8 -7 -6 -5 -5 -5 -5 -4 -4 -4 -4 -4 -4 -3 -3 -2 --------- Run | Yrd Mat Min Mat Mat Fac Fac Fac Upp Upp War Pro Fac Ext Cet Arc Hub Res Tes Res Machines Accessed 93 | . 6 . 1 5 17 12 9 1 . 4 . 4 12 3 . 2 7 8 2 Terminals 62 | . 6 . . 4 11 6 6 . . . . 3 11 3 . 2 4 6 . Fabricators 3 | . . . . . 1 1 . . . . . . . . . . . 1 . Repair Stations 2 | . . . . . . . 1 . . . . . . . . . . . 1 Recycling Units 12 | . . . 1 . 3 3 1 . . . . 1 1 . . . 2 . . Scanalyzers 3 | . . . . 1 1 1 . . . . . . . . . . . . . Garrison Access 6 | . . . . . 1 1 1 . . . . . . . . . 1 1 1 Total Hacks 255 | . 29 . 2 18 45 29 22 1 . 11 . 7 35 5 . 7 22 16 6 Successful 153 | . 20 . 2 14 21 17 14 1 . 11 . 4 28 3 . 1 11 5 1 Failed 102 | . 9 . . 4 24 12 8 . . . . 3 7 2 . 6 11 11 5 Catastrophic 19 | . 1 . . 2 5 3 . . . . . . . . . . 2 5 1 Database Lockouts . | . . . . . . . . . . . . . . . . . . . . Manual 111 | . 23 . 2 9 23 12 11 1 . . . 2 8 1 . 7 7 5 . Terminals 188 | . 29 . . 16 30 18 17 . . . . 5 33 5 . 7 15 13 . Fabricators 6 | . . . . . 3 2 . . . . . . . . . . . 1 . Repair Stations 5 | . . . . . . . 2 . . . . . . . . . . . 3 Recycling Units 25 | . . . 2 . 7 7 2 . . . . 2 2 . . . 3 . . Scanalyzers 5 | . . . . 2 2 1 . . . . . . . . . . . . . Garrison Access 14 | . . . . . 3 1 1 . . . . . . . . . 4 2 3 Terminal Hacks 88 | . 12 . . 8 8 4 7 1 . 11 . 3 22 3 . . 6 3 . Record 11 | . . . . . . . 1 . . 6 . . 2 2 . . . . . Part Schematic 1 | . . . . . . . 1 . . . . . . . . . . . . Robot Analysis 6 | . . . . . 3 . . . . . . . 1 . . . 2 . . Prototype ID Bank 10 | . 4 . . . 1 . . . . 4 . . 1 . . . . . . Open Door 9 | . . . . . . . . 1 . 1 . 1 4 1 . . . 1 . Level Access Points 4 | . 1 . . 1 . . . . . . . . 1 . . . 1 . . Branch Access Points 8 | . 1 . . 1 1 1 1 . . . . . 1 . . . 1 1 . Emergency Access Points 1 | . . . . 1 . . . . . . . . . . . . . . . Terminal Index 4 | . . . . 1 . 1 1 . . . . 1 . . . . . . . Recycling Unit Index 1 | . 1 . . . . . . . . . . . . . . . . . . Garrison Index 1 | . . . . . . 1 . . . . . . . . . . . . . Alert Level 9 | . 1 . . 1 1 . 1 . . . . 1 3 . . . . 1 . Unreport Threat 4 | . 1 . . 1 . . 1 . . . . . 1 . . . . . . Locate Traps 7 | . . . . 2 1 . 1 . . . . . 2 . . . 1 . . Reprogram Traps 2 | . . . . . . . . . . . . . 1 . . . 1 . . Dispatch Records 1 | . . . . . . . . . . . . . 1 . . . . . . Patrol Status 1 | . . . . . . 1 . . . . . . . . . . . . . Recall Investigation 1 | . . . . . . . . . . . . . 1 . . . . . . Recall Reinforcements 1 | . . . . . 1 . . . . . . . . . . . . . . Hauler Manifests 1 | . 1 . . . . . . . . . . . . . . . . . . Zone Layout 5 | . 2 . . . . . . . . . . . 3 . . . . . . Fabricator Hacks 4 | . . . . . 1 2 . . . . . . . . . . . 1 . Network Status 1 | . . . . . . . . . . . . . . . . . . 1 . Load Schematic 2 | . . . . . 1 1 . . . . . . . . . . . . . Build 1 | . . . . . . 1 . . . . . . . . . . . . . Repair Station Hacks 1 | . . . . . . . 1 . . . . . . . . . . . . Refit 1 | . . . . . . . 1 . . . . . . . . . . . . Recycling Unit Hacks 8 | . . . . . 2 3 . . . . . . 2 . . . 1 . . Report Inventory 3 | . . . . . 1 1 . . . . . . 1 . . . . . . Retrieve Matter 3 | . . . . . 1 1 . . . . . . 1 . . . . . . Retrieve Components 2 | . . . . . . 1 . . . . . . . . . . 1 . . Scanalyzer 5 | . . . . 2 2 1 . . . . . . . . . . . . . Insert Component 3 | . . . . 1 1 1 . . . . . . . . . . . . . Analyze 2 | . . . . 1 1 . . . . . . . . . . . . . . Garrison Access Hacks 6 | . . . . . 2 1 1 . . . . . . . . . 1 . 1 Unlock Access 1 | . . . . . 1 . . . . . . . . . . . . . . Seal Access 5 | . . . . . 1 1 1 . . . . . . . . . 1 . 1 Unauthorized Hacks 41 | . 8 . 2 4 6 6 5 . . . . 1 4 . . 1 3 1 . Terminals 31 | . 8 . . 4 3 4 4 . . . . . 4 . . 1 2 1 . Track 7 | . 3 . . 1 . 1 1 . . . . . 1 . . . . . . Assimilate 2 | . . . . . 1 . . . . . . . . . . . . 1 . Botnet 22 | . 5 . . 3 2 3 3 . . . . . 3 . . 1 2 . . Fabricators . | . . . . . . . . . . . . . . . . . . . . Repair Stations . | . . . . . . . . . . . . . . . . . . . . Recycling Units 10 | . . . 2 . 3 2 1 . . . . 1 . . . . 1 . . Monitor 3 | . . . 1 . 1 1 . . . . . . . . . . . . . Recyclers 6 | . . . 1 . 1 1 1 . . . . 1 . . . . 1 . . Tunnel 1 | . . . . . 1 . . . . . . . . . . . . . . Scanalyzers . | . . . . . . . . . . . . . . . . . . . . Garrison Access . | . . . . . . . . . . . . . . . . . . . . Data Cores Recovered . | . . . . . . . . . . . . . . . . . . . . Used . | . . . . . . . . . . . . . . . . . . . . Hacking Detections 73 | . 4 . 1 4 16 10 7 . . . . 3 9 2 . 2 7 6 2 Full Trace Events 9 | . . . . . . 2 1 . . . . . 2 . . . . 3 1 Feedback Events 1 | . . . . . . . . . . . . . 1 . . . . . . Hackware Fried 1 | . . . . . . . . . . . . . 1 . . . . . . Feedback Blocked . | . . . . . . . . . . . . . . . . . . . . Robot Schematics Acquired . | . . . . . . . . . . . . . . . . . . . . Robots Built . | . . . . . . . . . . . . . . . . . . . . Authchips . | . . . . . . . . . . . . . . . . . . . . Time . | . . . . . . . . . . . . . . . . . . . . Total Robot Build Rating . | . . . . . . . . . . . . . . . . . . . . Part Schematics Acquired 3 | . . . . 1 1 . 1 . . . . . . . . . . . . Parts Built 1 | . . . . . . 1 . . . . . . . . . . . . . Authchips . | . . . . . . . . . . . . . . . . . . . . Time 44 | . . . . . . 44 . . . . . . . . . . . . . Total Part Build Rating 4 | . . . . . . 4 . . . . . . . . . . . . . Parts Repaired . | . . . . . . . . . . . . . . . . . . . . Time . | . . . . . . . . . . . . . . . . . . . . Parts Recycled . | . . . . . . . . . . . . . . . . . . . . Recycled Matter . | . . . . . . . . . . . . . . . . . . . . Retrieved Matter . | . . . . . . . . . . . . . . . . . . . . Retrieved Components 2 | . . . . . . 2 . . . . . . . . . . . . . Parts Scanalyzed 2 | . . . . 1 1 . . . . . . . . . . . . . . Part Schematics Acquired 2 | . . . . 1 1 . . . . . . . . . . . . . . Parts Damaged . | . . . . . . . . . . . . . . . . . . . . Bothacking | -11 -10 -10 -9 -8 -7 -6 -5 -5 -5 -5 -4 -4 -4 -4 -4 -4 -3 -3 -2 ------------ Run | Yrd Mat Min Mat Mat Fac Fac Fac Upp Upp War Pro Fac Ext Cet Arc Hub Res Tes Res Used RIF Installer . | . . . . . . . . . . . . . . . . . . . . Robots Hacked 1 | . . . . . . . . . . . . . . . . . 1 . . Non-combat 1 | . . . . . . . . . . . . . . . . . 1 . . Combat . | . . . . . . . . . . . . . . . . . . . . Robot Hacks Applied 2 | . . . . . . . . . . . . . . . . . 2 . . parse_system 1 | . . . . . . . . . . . . . . . . . 1 . . find_recycling 1 | . . . . . . . . . . . . . . . . . 1 . . Relay Couplers Released 4 | . . . . . . . . . . . . . . . . . . . 4 Machine Destruction 4 | . . . . . . . . . . . . . . . . . . . 4 Fabnet Peak Effective % . | . . . . . . . . . . . . . . . . . . . . Robots Rewired . | . . . . . . . . . . . . . . . . . . . . Allies Hacked . | . . . . . . . . . . . . . . . . . . . . Hacks Repelled . | . . . . . . . . . . . . . . . . . . . . Allies | -11 -10 -10 -9 -8 -7 -6 -5 -5 -5 -5 -4 -4 -4 -4 -4 -4 -3 -3 -2 -------- Run | Yrd Mat Min Mat Mat Fac Fac Fac Upp Upp War Pro Fac Ext Cet Arc Hub Res Tes Res Total Allies 12 | . . . . . 1 . . . . . . 3 8 . . . . . . Largest Group 5 | . . . . . 1 . . . . . . 3 5 . . . . . . Highest-Rated Group 259 | . . . . . 10 . . . . . . 138 259 . . . . . . Highest-Rated Ally 104 | . . . . . 10 . . . . . . 46 104 . . . . . . Total Orders . | . . . . . . . . . . . . . . . . . . . . Ally Attacks 66 | . . . . . . . . . . . . 7 59 . . . . . . Total Damage 2049 | . . . . . . . . . . . . 209 1840 . . . . . . Kills 11 | . . . . . . . . . . . . 1 10 . . . . . . Allies Corrupted . | . . . . . . . . . . . . . . . . . . . . Allies Melted 5 | . . . . . . . . . . . . . . . . . . . 5 Intel | -11 -10 -10 -9 -8 -7 -6 -5 -5 -5 -5 -4 -4 -4 -4 -4 -4 -3 -3 -2 ------- Run | Yrd Mat Min Mat Mat Fac Fac Fac Upp Upp War Pro Fac Ext Cet Arc Hub Res Tes Res Robot Analysis Total 6 | . . . . . 3 . . . . . . . 1 . . . 2 . . Derelict Logs Recovered 4 | . . 1 . . . . . 1 1 . 1 . . . . . . . . Drone Launches . | . . . . . . . . . . . . . . . . . . . . Drone Recoveries . | . . . . . . . . . . . . . . . . . . . . Exploration | -11 -10 -10 -9 -8 -7 -6 -5 -5 -5 -5 -4 -4 -4 -4 -4 -4 -3 -3 -2 ------------- Run | Yrd Mat Min Mat Mat Fac Fac Fac Upp Upp War Pro Fac Ext Cet Arc Hub Res Tes Res Turns Passed 7903 | . 893 899 732 754 508 369 248 130 91 510 44 240 418 58 29 257 937 394 392 Spaces Moved 10013 | 1 485 535 341 306 1182 929 840 385 300 766 176 636 778 140 56 223 834 510 590 Core 480 | . . . . . . . . . . . . . . . 30 28 139 93 190 Treads 1635 | . 447 535 341 306 6 . . . . . . . . . . . . . . Legs 39 | 1 38 . . . . . . . . . . . . . . . . . . Wheels 606 | . . . . . . . . . . . . . . . . 195 411 . . Hover 885 | . . . . . . . . . . . . . . . . . 284 345 256 Flight 6368 | . . . . . 1176 929 840 385 300 766 176 636 778 140 26 . . 72 144 Fastest Speed 21 | 120 120 160 160 160 26 24 24 24 24 24 24 21 29 37 40 50 50 32 32 Average Speed 57 | 120 156 160 160 160 27 24 24 24 24 24 24 22 31 37 45 104 84 54 46 Slowest Speed 200 | 120 160 160 160 160 160 25 24 24 24 24 24 29 37 40 50 115 150 200 117 Overloaded Moves 7 | . . . . . . . . . . . . . . . . . . 7 . Propulsion Burnouts . | . . . . . . . . . . . . . . . . . . . . Robots Hopped 61 | . . . . . 11 10 6 . . 3 . 1 22 3 1 . . . 4 Cave-ins Triggered . | . . . . . . . . . . . . . . . . . . . . Exploration Rate (%) 49 | 2 68 99 40 40 37 30 29 59 52 91 37 19 84 79 76 38 22 65 22 Regions Visited 19 Branch Regions 10 Pre-discovered Areas 1 | . . . . . 1 . . . . . . . . . . . . . . Known Exits Taken 16 | . 1 1 . 1 1 1 1 1 1 1 1 1 1 1 . 1 1 1 . Unknown Exits Taken 3 | 1 . . 1 . . . . . . . . . . . 1 . . . . Scrap Searched 1 | . . . . . . . . . . . 1 . . . . . . . . Spaces Dug 83 | . . . . . 6 7 7 1 . . . 2 . . 1 1 . 44 14 Terrain Destroyed 284 | . . 38 . . 6 7 7 1 48 . . 2 27 . 1 1 . 132 14 Melee 39 | . . . . . 6 7 7 1 . . . 2 . . 1 1 . . 14 Projectile . | . . . . . . . . . . . . . . . . . . . . AOE 245 | . . 38 . . . . . . 48 . . . 27 . . . . 132 . Terrain Rammed . | . . . . . . . . . . . . . . . . . . . . Walls Destroyed . | . . . . . . . . . . . . . . . . . . . . Machines Disabled . | . . . . . . . . . . . . . . . . . . . . Actions | -11 -10 -10 -9 -8 -7 -6 -5 -5 -5 -5 -4 -4 -4 -4 -4 -4 -3 -3 -2 --------- Run | Yrd Mat Min Mat Mat Fac Fac Fac Upp Upp War Pro Fac Ext Cet Arc Hub Res Tes Res Total 11643 | . 556 567 460 456 1347 1050 869 414 310 1092 176 731 921 142 56 239 1022 579 656 Wait 928 | . 18 7 54 59 59 100 . 9 . 316 . 64 106 3 . 3 107 7 16 Move 9883 | . 484 534 340 305 1161 908 828 384 299 760 175 633 736 134 53 222 833 509 585 Hop 50 | . . . . . 9 10 5 . . 2 . 1 19 2 1 . . . 1 Pick Up 81 | . 9 2 11 12 13 5 6 3 . 3 . 3 2 1 . . 7 1 3 Fast Attach 73 | . 2 3 4 1 2 2 1 3 1 1 . 2 4 . . 9 19 8 11 Attach 66 | . . 3 5 3 14 3 2 1 . . . 6 9 . 1 3 8 2 6 Detach 54 | . . 2 4 1 11 2 3 1 . . . 4 5 . . . 16 1 4 Swap 46 | . 3 2 4 2 5 5 8 1 2 . 1 7 4 . . . 1 1 . Drop 102 | . 7 2 1 12 21 7 8 7 1 10 . 8 5 2 . . 5 4 2 Fire 157 | . 32 7 32 60 . . . 3 7 . . . 4 . . . 8 4 . Melee 115 | . . . . . 16 8 8 2 . . . 3 14 . 1 2 17 16 28 Ram 1 | . . . . . . . . . . . . . . . . . 1 . . Kick . | . . . . . . . . . . . . . . . . . . . . Crush 8 | . 1 1 5 1 . . . . . . . . . . . . . . . Escape Stasis 73 | . . . . . 36 . . . . . . . 11 . . . . 26 . Rewire . | . . . . . . . . . . . . . . . . . . . . Trap 6 | . . 4 . . . . . . . . . . 2 . . . . . . Miscellaneous . | . . . . . . . . . . . . . . . . . . . . Route ------- -11/Scrapyard -10/Materials (discovered 4 exits: *Mat x3 / *Min) -10/Mines (discovered 2 exits: *Mat x2) -9/Materials (discovered 2 exits: *Mat / [*Min]) -8/Materials (discovered 3 exits: *Fac x3) -7/Factory (discovered 3 exits: *Fac / *Low x2) -6/Factory (discovered 3 exits: *Fac / *Low x2) -5/Factory (discovered 2 exits: *Upp x2) -5/Upper Caves -5/Upper Caves (discovered 2 exits: *Fac / *War) -5/Warlord -4/Proximity Caves -4/Factory (discovered 3 exits: *Res x2 / *Ext) -4/Extension (discovered 3 exits: *Res x2 / *Cet) -4/Cetus (discovered 2 exits: *Res / *Arc) -4/Archives (discovered 2 exits: *Hub x2) -4/Hub_04(d) -3/Research (discovered 6 exits: *Res x3 / Arm / *Tes x2) -3/Testing -2/Research History --------- Turn | Location | Event 1 | -11/Scrapyard | Discovered new exit (range 0) 1 | -11/Scrapyard | Entered Materials 179 | -10/Materials | Discovered new exit (range 13) 317 | -10/Materials | Build established: Mutant 363 | -10/Materials | Identified exit to Mines 401 | -10/Materials | Discovered new exit (range 14) 543 | -10/Materials | Identified exit to Materials 894 | -10/Materials | Entered Mines 894 | -10/Mines | Discovered exit to Materials (range 10) 914 | -10/Mines | Met a Derelict bent on vengeance 940 | -10/Mines | Assembled infested the area 958 | -10/Mines | Core integrity fell below 50% 992 | -10/Mines | Destroyed 9 combat bots 992 | -10/Mines | Lost 3 parts (1n2w) 1167 | -10/Mines | Received a Rocket Launcher from a helpful Derelict 1430 | -10/Mines | Found a hidden stash of uninstalled traps 1481 | -10/Mines | Discovered exit to Materials (range 9) 1510 | -10/Mines | Learned Materials stockpile data 1684 | -10/Mines | A weapon hastily lodged in a ceiling crevice suddenly fell to the ground 1793 | -10/Mines | Entered Materials 1793 | -9/Materials | Evolved 2 slots: Propulsion x2 1861 | -9/Materials | Discovered new exit (range 8) 2495 | -9/Materials | Discovered new exit (range 15) 2525 | -9/Materials | Entered another Materials area 2525 | -8/Materials | Evolved 2 slots: Utility x2 2962 | -8/Materials | Identified exit to Factory 3021 | -8/Materials | Build established: Scavenger-Mutant 3031 | -8/Materials | Garrison activated, responded to threat 3279 | -8/Materials | Entered Factory 3279 | -7/Factory | Evolved 2 slots: Utility x2 3376 | -7/Factory | Discovered new exit (range 6) 3377 | -7/Factory | Identified exit to Lower Caves 3476 | -7/Factory | Identified exit to Garrison 3715 | -7/Factory | Discovered new exit (range 8) 3719 | -7/Factory | Build established: Scout 3786 | -7/Factory | Identified exit to Factory 3787 | -7/Factory | Entered another Factory area 3787 | -6/Factory | Evolved 2 slots: Propulsion x1, Utility x1 3815 | -6/Factory | Identified exit to Lower Caves 3862 | -6/Factory | Discovered new exit (range 5) 3865 | -6/Factory | Identified exit to Factory 4054 | -6/Factory | Fabricated Cld. VTOL Module (x1) 4156 | -6/Factory | Entered another Factory area 4156 | -5/Factory | Evolved 2 slots: Power x1, Utility x1 4269 | -5/Factory | Discovered new exit (range 4) 4270 | -5/Factory | Identified exit to Upper Caves 4404 | -5/Factory | Entered Upper Caves 4421 | -5/Upper Caves | Encountered a Warlord checkpoint 4425 | -5/Upper Caves | Acquired the password to a Derelict Tinkerer's latest research 4430 | -5/Upper Caves | Found Prototype Special Weapon 4430 | -5/Upper Caves | Identified Molecular Deconstructor 4517 | -5/Upper Caves | Discovered new exit (range 16) 4521 | -5/Upper Caves | Identified exit to Upper Caves 4534 | -5/Upper Caves | Entered another Upper Caves area 4535 | -5/Upper Caves | Identified exit to Warlord 4540 | -5/Upper Caves | Discovered new exit (range 14) 4543 | -5/Upper Caves | Identified exit to Factory 4570 | -5/Upper Caves | Encountered a Warlord checkpoint 4625 | -5/Upper Caves | Entered Warlord 4706 | -5/Warlord | Met Warlord 4721 | -5/Warlord | Warlord's base attacked by MAIN.C 4730 | -5/Warlord | Found Prototype Special Weapon 4730 | -5/Warlord | Identified RU-N14's Throwing Claymores v3 4950 | -5/Warlord | Lost 11 allies 5071 | -5/Warlord | Warlord forces counterattacked 5076 | -5/Warlord | Build established: Hacker-Mutant 5105 | -5/Warlord | Spotted Striker 5132 | -5/Warlord | Discovered new exit (range 14) 5134 | -5/Warlord | Identified exit to Proximity Caves 5135 | -5/Warlord | Entered Proximity Caves 5146 | -4/Proximity Caves | Lost 5 allies 5175 | -4/Proximity Caves | Discovered exit to Factory (range 19) 5179 | -4/Proximity Caves | Entered Factory 5179 | -4/Factory | Evolved 2 slots: Propulsion x1, Utility x1 5281 | -4/Factory | Discovered new exit (range 6) 5282 | -4/Factory | Identified exit to Extension 5307 | -4/Factory | Discovered new exit (range 7) 5328 | -4/Factory | Identified exit to Research 5378 | -4/Factory | Discovered exit to Research (range 19) 5396 | -4/Factory | Allied Derelicts emerged from ambush trap array 5419 | -4/Factory | Entered Extension 5441 | -4/Extension | Spotted B-86 Titan 5567 | -4/Extension | Rescued a captive Derelict 5567 | -4/Extension | Rescued a captive Derelict 5573 | -4/Extension | Identified exit to Cetus 5639 | -4/Extension | Rescued a captive Derelict 5640 | -4/Extension | Rescued a captive Derelict 5660 | -4/Extension | Spotted B-86 Titan 5676 | -4/Extension | Allies destroyed B-86 Titan 5722 | -4/Extension | Hacking Suite fried by hacking feedback 5725 | -4/Extension | Rescued a captive Derelict 5726 | -4/Extension | Rescued a captive Derelict 5730 | -4/Extension | Rescued a captive Derelict 5737 | -4/Extension | Lost 4 allies 5798 | -4/Extension | Lost 5 parts (1p1n3u) 5837 | -4/Extension | Entered Cetus 5842 | -4/Cetus | Spotted Cetus Guard 5842 | -4/Cetus | Spotted Cetus Guard 5842 | -4/Cetus | Spotted Cetus Guard 5842 | -4/Cetus | Spotted Cetus Guard 5849 | -4/Cetus | Discovered exit to Research (range 22) 5884 | -4/Cetus | Discovered new exit (range 22) 5895 | -4/Cetus | Identified exit to Archives 5895 | -4/Cetus | Entered Archives 5909 | -4/Archives | Discovered new exit (range 20) 5910 | -4/Archives | Released all parts (9) 5911 | -4/Archives | Unable to access archive contents 5917 | -4/Archives | Discovered new exit (range 16) 5924 | -4/Archives | Entered Hub_04(d) 6153 | -4/Hub_04(d) | Core integrity fell below 50% 6167 | -4/Hub_04(d) | Discovered exit to Research (range 3) 6181 | -4/Hub_04(d) | Entered Research 6181 | -3/Research | Evolved 2 slots: Utility x2 6212 | -3/Research | Lost 5 parts (1p3u1w) 6649 | -3/Research | Discovered new exit (range 5) 6653 | -3/Research | Identified exit to Research 6860 | -3/Research | Build established: Scavenger-Assassin 7070 | -3/Research | Identified exit to Armory 7070 | -3/Research | Identified exit to Testing 7100 | -3/Research | Found Prototype Launcher 7100 | -3/Research | Identified Tactical Quantum Warhead 7118 | -3/Research | Entered Testing 7179 | -3/Testing | Build established: Scavenger-Scout 7258 | -3/Testing | Found Prototype Device 7258 | -3/Testing | Identified AEGIS Remote Shield 7363 | -3/Testing | Lost 3 parts (1p1n1u) 7382 | -3/Testing | Spotted Striker 7383 | -3/Testing | Spotted Striker 7396 | -3/Testing | Destroyed 9 combat bots 7410 | -3/Testing | Lost 11 parts (1p3n5u2w) 7495 | -3/Testing | Discovered exit to Research (range 12) 7512 | -3/Testing | Entered Research 7512 | -2/Research | Warlord forces began assault on 0b10 7512 | -2/Research | Evolved 2 slots: Utility x2 7622 | -2/Research | Research machine network offline 7659 | -2/Research | Found Adv. Force Booster 7792 | -2/Research | Lost 10 parts (2p5n3u) 7822 | -2/Research | Core integrity fell below 50% 7869 | -2/Research | Core integrity fell below 20% 7904 | -2/Research | Destroyed by G-73 Enforcer with Phase Gun Last Messages --------------- 07871_ Acquired Xenon Bombardment Thruster. 07872_ Slug penetrates Wall. 07873_ Critical hit (Burn: +37). 07873_ Acquired Lgt. Antimatter Reactor. 07875_ Penetrated by Slug. 07875_ Xenon Bombardment Thruster destroyed. 07876_ Acquired Xenon Bombardment Thruster. 07877_ Penetrated by Slug. 07877_ Slug penetrates G-73 Enforcer. 07877_ Slug penetrates Wall. 07878_ Acquired Xenon Bombardment Thruster. 07879_ Lgt. Antimatter Reactor destroyed. 07881_ Slug penetrates Wall. 07881_ Xenon Bombardment Thruster destroyed. 07882_ Critical hit (Burn: +37). 07887_ Slug penetrates Wall. 07892_ Imp. Melee Analysis Suite destroyed. 07893_ ALERT: Garrison Access compromised, dispatching assault squad. 07894_ Acquired 107 matter. 07897_ Slug penetrates Wall. Map ----- +----------------------------------------------------+ | ???????????????????????# #! ""T"" #????????? | | ???????????????????????? # #????????? | | ?????????????????######### ##/# #????????? | | ?????????????????# = /= + #????????? | | ?????????????????# !!! #### # #????????? | | ?????????????????# !!* #??# #####+########?????? | | ?????????????????# !! #??# ####### | | ?????????????????# #??#### # | | ?????????????????### #####?????# # | | ??????????????????? #??????????# # ! | | ??????????????????##??????????##+###### # ! | | ??????????????????????????????? # # | | ??????????????????????????????? # # """ | | ???????????????????????????????? # # """ | | ???????????????????????????????? # R" | | ????????????????????????????????? # # """ | | ????????????????????????????????? ]# + | | ????????????????????????????????? ?# #= | | ?????????????????????????????????? ?# #%##### | | ???????????##########+#############+### #= === | | ??????????? " # === | | ?????????? " " # == | | ?????????? " # | | ?????????? / | | ?????????????????#######g###+########## # | | ????????????????????????#@ g #????# # | | ????????????????????????# #????# ####### | | ????????????????????????# """ #????# | | ????????????????????????# """ #????# | | ????????????????????????# """ #????# | | ????????????????????????# """ #????# | | ????????????????????????# """ #??######+### | | ????????????????????????# #??# ????# | | ????????????????????????# [ #??# ???# | | ??????????????????###################=! ???# | | ??????????????????# * #=! ??# | | ??????????????????# # ??# | | ??????????????????# """ """ """ # ?# | | ??????????????????# """ """ G" #?? ?# | | ??????????????????# """ """ """ #???? # | | ??????????????????# #?????? # | | ??????????????????# ] ######### | | ?????????????#############+########## # | | ########?????# ?# # # # | | ! #?????# # # # + | | #?????# """ # # # | | """" #?????# """ + / # "" # | | """" #?????# * """ # # # S"" # | | """"" #?????# # # # "" # | | """" #?????# !?# # # # | +----------------------------------------------------+ Best States ------------- Heat Dissipation 127 Energy Generation 39 Energy Capacity 315 Matter Stores 300 Matter Capacity 300 Sight Range 22 Robot Scan Range 16 Terrain Scan Density 10 ECM Strength 2 Jamming Range 14 Cloak Strength 3 Additional Mass Support 9 Corruption Containment 8 Armor Coverage 600 Resistance: KI 20 Resistance: TH 20 Resistance: EX 20 Resistance: EM 20 Resistance: I 20 Resistance: S 20 Resistance: P 20 Propulsion Shielding 66 Utility Shielding 66 Evasion (%) 75 Melee Accuracy 6 Recoil Reduction 4 Force Boost 40 Offensive Hacking 30 Defensive Hacking 10 Trap Extractor Capacity 6 Item Schematics ----------------- Imp. VTOL Module | -8/Materials | Scanalyzed Cld. VTOL Module | -7/Factory | Scanalyzed Adv. Transmission Jammer | -5/Factory | Hacked Robot Schematics ------------------ None Fabricated ------------ Cld. VTOL Module | x1 | -6/Factory Alien Tech Used ----------------- None Achievements -------------- Error 47 Factory Defaults Challenges ------------ None Game ------ Seed ChipLaserScythe Manual? 0 Play Time 04:09:01 Cumulative 56.9 hours Start 2024.04.26 @ 11:55:44 End 2024.04.28 @ 10:44:35 Sessions 11 Manual Loads 0 Difficulty Adventurer Special Mode None Game No. 49 Rogue 4 Adventurer 45 Explorer 0 Win Type - Total 2 Types 2/0/0/0/0/0/0/0/0 Lore% 52 Gallery% 49 Achievement% 43 Wizard Run 0 Options --------- Layout 0 ASCII 1 Keyboard 1 Movement Numpad Keybinds 0 Fullscreen 1 Font 24/Smallcaps Map View 76x50 Zoom Use 0% Tactical HUD 1 Map Filters NONE Filters NONE Steam 1 RUN: 874b96eb-a8b5-4a7b-9ac4-b3ace891c4f5